[Event "Early-Titled-Tuesday-Blitz-March-12-2024"]
[Site "Chess.com"]
[Date "2024.03.12"]
[Round "5"]
[White "MatthewG-p4p"]
[Black "GothamChess"]
[Result "1-0"]
[WhiteElo "2878"]
[BlackElo "2677"]
[TimeControl "180+1"]
[EndTime "8:55:58 PDT"]
[Termination "MatthewG-p4p won by checkmate"]

1. f4 {[%clk 0:03:00.9]} 1... b6 {[%clk 0:02:56]} 2. e4 {[%clk 0:02:59.5]} 2...
Bb7 {[%clk 0:02:56.3]} 3. d3 {[%clk 0:03:00.3]} 3... d5 {[%clk 0:02:51.5]} 4.
Qe2 {[%clk 0:02:55.7]} 4... dxe4 {[%clk 0:02:33.7]} 5. dxe4 {[%clk 0:02:56.6]}
5... Nf6 {[%clk 0:02:33.2]} 6. Nc3 {[%clk 0:02:53.8]} 6... Ba6 {[%clk 0:02:31]}
7. Qf3 {[%clk 0:02:43.4]} 7... Bxf1 {[%clk 0:02:13.7]} 8. Qxf1 {[%clk
0:02:44.3]} 8... e6 {[%clk 0:02:05.1]} 9. Nf3 {[%clk 0:02:42.7]} 9... Bc5 {[%clk
0:01:56.2]} 10. Qb5+ {[%clk 0:02:25.7]} 10... Qd7 {[%clk 0:01:44.6]} 11. Qxd7+
{[%clk 0:01:50.2]} 11... Nbxd7 {[%clk 0:01:44.9]} 12. Ke2 {[%clk 0:01:50.8]}
12... O-O-O {[%clk 0:01:28.9]} 13. e5 {[%clk 0:01:47]} 13... Nd5 {[%clk
0:01:06.5]} 14. Ne4 {[%clk 0:01:47.4]} 14... h6 {[%clk 0:01:01.5]} 15. a3 {[%clk
0:01:39.9]} 15... f5 {[%clk 0:00:53.3]} 16. exf6 {[%clk 0:01:20.6]} 16... N5xf6
{[%clk 0:00:42.7]} 17. Nxc5 {[%clk 0:01:19]} 17... Nxc5 {[%clk 0:00:42.4]} 18.
Be3 {[%clk 0:01:18.4]} 18... Nce4 {[%clk 0:00:39.7]} 19. Nd4 {[%clk 0:01:14.7]}
19... Rhe8 {[%clk 0:00:20]} 20. Nc6 {[%clk 0:01:11.9]} 20... Rd5 {[%clk
0:00:17.3]} 21. c4 {[%clk 0:01:05.9]} 21... Rd7 {[%clk 0:00:09.1]} 22. Nxa7+
{[%clk 0:01:04.9]} 22... Kb7 {[%clk 0:00:08.9]} 23. Nb5 {[%clk 0:01:05.6]} 23...
e5 {[%clk 0:00:09.6]} 24. f5 {[%clk 0:01:03.1]} 24... Ng4 {[%clk 0:00:04.7]} 25.
Rad1 {[%clk 0:01:00.1]} 25... Rf7 {[%clk 0:00:04.7]} 26. Kf3 {[%clk 0:00:52.2]}
26... Nxe3 {[%clk 0:00:03.3]} 27. Kxe3 {[%clk 0:00:53.1]} 27... Nc5 {[%clk
0:00:02.6]} 28. g4 {[%clk 0:00:51.3]} 28... h5 {[%clk 0:00:02.8]} 29. h3 {[%clk
0:00:51.4]} 29... Na4 {[%clk 0:00:03.1]} 30. b3 {[%clk 0:00:49.4]} 30... Nc5
{[%clk 0:00:03]} 31. b4 {[%clk 0:00:50.1]} 31... Na4 {[%clk 0:00:03.3]} 32. Rd2
{[%clk 0:00:44.2]} 32... Rh8 {[%clk 0:00:02.4]} 33. Rdh2 {[%clk 0:00:35.6]}
33... Rh6 {[%clk 0:00:02.3]} 34. Ke4 {[%clk 0:00:35.2]} 34... Rc6 {[%clk
0:00:02.5]} 35. Rc1 {[%clk 0:00:28.4]} 35... g6 {[%clk 0:00:02.1]} 36. Kxe5
{[%clk 0:00:26.7]} 36... gxf5 {[%clk 0:00:01.9]} 37. gxf5 {[%clk 0:00:27.6]}
37... Rcf6 {[%clk 0:00:02.2]} 38. Rf2 {[%clk 0:00:27.5]} 38... Rc6 {[%clk
0:00:02.1]} 39. Nd4 {[%clk 0:00:27.2]} 39... Re7+ {[%clk 0:00:01.8]} 40. Ne6
{[%clk 0:00:22.4]} 40... Rd6 {[%clk 0:00:01.7]} 41. c5 {[%clk 0:00:20.4]} 41...
Rd3 {[%clk 0:00:01.3]} 42. c6+ {[%clk 0:00:17.3]} 42... Ka6 {[%clk 0:00:01.7]}
43. Ke4 {[%clk 0:00:17.2]} 43... Rd6 {[%clk 0:00:01.4]} 44. Rf3 {[%clk
0:00:11.8]} 44... Rexe6+ {[%clk 0:00:01.6]} 45. fxe6 {[%clk 0:00:12.7]} 45...
Rxe6+ {[%clk 0:00:02.5]} 46. Kd5 {[%clk 0:00:13.1]} 46... Rd6+ {[%clk 0:00:03]}
47. Ke5 {[%clk 0:00:13.9]} 47... Kb5 {[%clk 0:00:03.3]} 48. Rf7 {[%clk
0:00:13.5]} 48... Nb2 {[%clk 0:00:02.6]} 49. Rxc7 {[%clk 0:00:12.9]} 49... Rd8
{[%clk 0:00:03.2]} 50. Ke6 {[%clk 0:00:11.2]} 50... Nd3 {[%clk 0:00:02.7]} 51.
Rf1 {[%clk 0:00:11.8]} 51... Re8+ {[%clk 0:00:02.7]} 52. Kd7 {[%clk 0:00:11.8]}
52... Re3 {[%clk 0:00:02.8]} 53. Rf5+ {[%clk 0:00:11.9]} 53... Ka6 {[%clk
0:00:02.9]} 54. Rc8 {[%clk 0:00:12.6]} 54... Ne5+ {[%clk 0:00:03.1]} 55. Kc7
{[%clk 0:00:12.6]} 55... Nc4 {[%clk 0:00:03.6]} 56. Ra8# {[%clk 0:00:12.8]} 1-0

[Event "Early-Titled-Tuesday-Blitz-March-12-2024"]
[Site "Chess.com"]
[Date "2024.03.12"]
[Round "5"]
[White "Grandelicious"]
[Black "luckyswitchback"]
[Result "1-0"]
[WhiteElo "2878"]
[BlackElo "2681"]
[TimeControl "180+1"]
[EndTime "8:56:00 PDT"]
[Termination "Grandelicious won by checkmate"]

1. Nf3 {[%clk 0:03:00.9]} 1... d5 {[%clk 0:02:59.9]} 2. e3 {[%clk 0:03:01.4]}
2... Nf6 {[%clk 0:02:58.8]} 3. c4 {[%clk 0:03:02]} 3... e6 {[%clk 0:02:56.2]} 4.
b3 {[%clk 0:03:02.5]} 4... c5 {[%clk 0:02:56.4]} 5. cxd5 {[%clk 0:02:57]} 5...
exd5 {[%clk 0:02:56.5]} 6. Be2 {[%clk 0:02:57.4]} 6... Nc6 {[%clk 0:02:53.3]} 7.
O-O {[%clk 0:02:55.1]} 7... d4 {[%clk 0:02:48.7]} 8. Bb5 {[%clk 0:02:44]} 8...
Be7 {[%clk 0:02:40.8]} 9. exd4 {[%clk 0:02:32.6]} 9... cxd4 {[%clk 0:02:38.8]}
10. Bb2 {[%clk 0:02:30.3]} 10... O-O {[%clk 0:02:21.9]} 11. Bxc6 {[%clk
0:02:29]} 11... bxc6 {[%clk 0:02:22.8]} 12. Nxd4 {[%clk 0:02:24.1]} 12... Qd5
{[%clk 0:02:04.6]} 13. Qf3 {[%clk 0:02:13.6]} 13... Qxf3 {[%clk 0:02:04.2]} 14.
Nxf3 {[%clk 0:02:11]} 14... Ba6 {[%clk 0:02:03.7]} 15. Re1 {[%clk 0:02:06.4]}
15... Nd5 {[%clk 0:02:03.6]} 16. Nc3 {[%clk 0:02:01.2]} 16... Bf6 {[%clk
0:02:02.6]} 17. Na4 {[%clk 0:01:45.5]} 17... Bxb2 {[%clk 0:01:59.4]} 18. Nxb2
{[%clk 0:01:46.1]} 18... Nb4 {[%clk 0:01:59.4]} 19. Rec1 {[%clk 0:01:38.7]}
19... Bb7 {[%clk 0:01:19.5]} 20. a3 {[%clk 0:01:33.7]} 20... Nd5 {[%clk
0:01:16.2]} 21. Nd3 {[%clk 0:01:29.4]} 21... Rad8 {[%clk 0:01:08.7]} 22. Nc5
{[%clk 0:01:28.5]} 22... Bc8 {[%clk 0:01:07.6]} 23. Rc4 {[%clk 0:01:21.3]} 23...
Rfe8 {[%clk 0:01:04.5]} 24. h3 {[%clk 0:01:15.4]} 24... Nb6 {[%clk 0:00:57.1]}
25. Rd4 {[%clk 0:01:07.6]} 25... Rd5 {[%clk 0:00:52.1]} 26. Rxd5 {[%clk
0:01:03.4]} 26... cxd5 {[%clk 0:00:53]} 27. Re1 {[%clk 0:01:00.6]} 27... Kf8
{[%clk 0:00:50]} 28. Rxe8+ {[%clk 0:00:57.9]} 28... Kxe8 {[%clk 0:00:50.9]} 29.
Kf1 {[%clk 0:00:52.4]} 29... Bf5 {[%clk 0:00:48.3]} 30. Nd4 {[%clk 0:00:50.5]}
30... Bd7 {[%clk 0:00:42]} 31. Ke2 {[%clk 0:00:43.3]} 31... Ke7 {[%clk
0:00:39.5]} 32. Kd3 {[%clk 0:00:42]} 32... Be8 {[%clk 0:00:38.9]} 33. Nf5+
{[%clk 0:00:30.1]} 33... Kf6 {[%clk 0:00:33.7]} 34. Ne3 {[%clk 0:00:29.5]} 34...
Bc6 {[%clk 0:00:32.9]} 35. Kd4 {[%clk 0:00:28.1]} 35... g6 {[%clk 0:00:31.9]}
36. a4 {[%clk 0:00:27.9]} 36... a5 {[%clk 0:00:25.6]} 37. Nd3 {[%clk 0:00:25.8]}
37... Nd7 {[%clk 0:00:15.9]} 38. Nf4 {[%clk 0:00:18.9]} 38... Ke7 {[%clk
0:00:16.4]} 39. Nfxd5+ {[%clk 0:00:17.7]} 39... Kd6 {[%clk 0:00:17]} 40. Nc4+
{[%clk 0:00:17.2]} 40... Ke6 {[%clk 0:00:17.3]} 41. Nde3 {[%clk 0:00:16.7]}
41... h5 {[%clk 0:00:14.1]} 42. Nxa5 {[%clk 0:00:17]} 42... Ba8 {[%clk
0:00:14.7]} 43. b4 {[%clk 0:00:17.2]} 43... Nb6 {[%clk 0:00:14.3]} 44. Nb3
{[%clk 0:00:16.8]} 44... Nxa4 {[%clk 0:00:14.5]} 45. Nc5+ {[%clk 0:00:17.3]}
45... Nxc5 {[%clk 0:00:14.9]} 46. Kxc5 {[%clk 0:00:17.9]} 46... f5 {[%clk
0:00:14]} 47. f4 {[%clk 0:00:17.5]} 47... Kf6 {[%clk 0:00:13.4]} 48. h4 {[%clk
0:00:17.4]} 48... g5 {[%clk 0:00:12.8]} 49. hxg5+ {[%clk 0:00:15.9]} 49... Kg6
{[%clk 0:00:13.3]} 50. g3 {[%clk 0:00:16.6]} 50... h4 {[%clk 0:00:13.5]} 51.
gxh4 {[%clk 0:00:17.5]} 51... Bb7 {[%clk 0:00:12]} 52. d4 {[%clk 0:00:17.2]}
52... Bc8 {[%clk 0:00:12.3]} 53. b5 {[%clk 0:00:17.1]} 53... Bd7 {[%clk
0:00:12.9]} 54. b6 {[%clk 0:00:17.4]} 54... Be8 {[%clk 0:00:13.5]} 55. b7 {[%clk
0:00:17.1]} 55... Bf7 {[%clk 0:00:14.2]} 56. b8=Q {[%clk 0:00:17.6]} 56... Kg7
{[%clk 0:00:14.8]} 57. Qd6 {[%clk 0:00:18.3]} 57... Kh7 {[%clk 0:00:14.7]} 58.
Qf6 {[%clk 0:00:19.2]} 58... Kg8 {[%clk 0:00:15.2]} 59. Nxf5 {[%clk 0:00:19.3]}
59... Kf8 {[%clk 0:00:14.3]} 60. Qd8+ {[%clk 0:00:19.7]} 60... Be8 {[%clk
0:00:14.2]} 61. Qe7+ {[%clk 0:00:20.6]} 61... Kg8 {[%clk 0:00:14.7]} 62. Qg7#
{[%clk 0:00:21.5]} 1-0

[Event "Early-Titled-Tuesday-Blitz-March-12-2024"]
[Site "Chess.com"]
[Date "2024.03.12"]
[Round "5"]
[White "laziestwin"]
[Black "GMKrikor"]
[Result "1/2-1/2"]
[WhiteElo "2585"]
[BlackElo "2870"]
[TimeControl "180+1"]
[EndTime "8:56:01 PDT"]
[Termination "Game drawn by agreement"]

1. d4 {[%clk 0:02:56.4]} 1... Nf6 {[%clk 0:02:59.7]} 2. c4 {[%clk 0:02:56.2]}
2... g6 {[%clk 0:02:58.6]} 3. g3 {[%clk 0:02:55.4]} 3... c6 {[%clk 0:02:49.2]}
4. Nf3 {[%clk 0:02:54.8]} 4... d5 {[%clk 0:02:50]} 5. cxd5 {[%clk 0:02:53.6]}
5... cxd5 {[%clk 0:02:50.9]} 6. Bg2 {[%clk 0:02:53.1]} 6... Bg7 {[%clk
0:02:51.4]} 7. O-O {[%clk 0:02:53.3]} 7... O-O {[%clk 0:02:50.6]} 8. Nc3 {[%clk
0:02:54]} 8... Ne4 {[%clk 0:02:50]} 9. Bf4 {[%clk 0:02:52.8]} 9... Nc6 {[%clk
0:02:48.4]} 10. Ne5 {[%clk 0:02:50.3]} 10... Nxc3 {[%clk 0:02:41.9]} 11. bxc3
{[%clk 0:02:49.7]} 11... Nxe5 {[%clk 0:02:41.8]} 12. Bxe5 {[%clk 0:02:49.7]}
12... Bxe5 {[%clk 0:02:39]} 13. dxe5 {[%clk 0:02:49.9]} 13... Be6 {[%clk
0:02:39.4]} 14. Rb1 {[%clk 0:02:44.3]} 14... Qc7 {[%clk 0:02:32.6]} 15. Qd4
{[%clk 0:02:22.3]} 15... b6 {[%clk 0:02:32.6]} 16. c4 {[%clk 0:01:35.1]} 16...
dxc4 {[%clk 0:02:33.5]} 17. Bxa8 {[%clk 0:01:34.7]} 17... Rxa8 {[%clk
0:02:34.4]} 18. Rfd1 {[%clk 0:01:34.6]} 18... Rc8 {[%clk 0:02:33]} 19. Rbc1
{[%clk 0:01:33.1]} 19... Kg7 {[%clk 0:02:29.2]} 20. f4 {[%clk 0:01:28.1]} 20...
b5 {[%clk 0:02:22.3]} 21. e4 {[%clk 0:01:26.8]} 21... Qc5 {[%clk 0:02:20.4]} 22.
Qxc5 {[%clk 0:01:17.2]} 22... Rxc5 {[%clk 0:02:21.3]} 23. Kf2 {[%clk 0:01:17.5]}
23... b4 {[%clk 0:02:19.5]} 24. Ke3 {[%clk 0:01:16.9]} 24... c3 {[%clk
0:02:18.2]} 25. Rc2 {[%clk 0:01:06.8]} 25... b3 {[%clk 0:02:11.5]} 26. axb3
{[%clk 0:01:06.6]} 26... Bxb3 {[%clk 0:02:12.4]} 27. Rdc1 {[%clk 0:01:07.1]}
27... Bxc2 {[%clk 0:02:07.5]} 28. Rxc2 {[%clk 0:01:08]} 28... f6 {[%clk
0:01:55.9]} 29. Kd4 {[%clk 0:01:07.7]} 29... Rc8 {[%clk 0:01:53.7]} 30. exf6+
{[%clk 0:01:06.9]} 30... Kxf6 {[%clk 0:01:53.4]} 31. Rxc3 {[%clk 0:00:50.4]}
31... Rxc3 {[%clk 0:01:21]} 32. Kxc3 {[%clk 0:00:51.3]} 32... e5 {[%clk
0:01:21.3]} 33. Kc4 {[%clk 0:00:17.5]} 33... exf4 {[%clk 0:00:25.9]} 34. gxf4
{[%clk 0:00:18.4]} 34... g5 {[%clk 0:00:26.7]} 35. fxg5+ {[%clk 0:00:18.7]}
35... Kxg5 {[%clk 0:00:27.2]} 36. Kd5 {[%clk 0:00:19.4]} 36... a5 {[%clk
0:00:27.3]} 37. e5 {[%clk 0:00:18.9]} 37... a4 {[%clk 0:00:27.4]} 38. e6 {[%clk
0:00:13.8]} 38... a3 {[%clk 0:00:17]} 39. e7 {[%clk 0:00:14.1]} 39... a2 {[%clk
0:00:17.6]} 40. e8=Q {[%clk 0:00:14.1]} 40... a1=Q {[%clk 0:00:18.1]} 41. Qg8+
{[%clk 0:00:09.3]} 41... Kh6 {[%clk 0:00:14.7]} 42. Qe6+ {[%clk 0:00:09.7]}
42... Kh5 {[%clk 0:00:11.7]} 43. Qh3+ {[%clk 0:00:09.2]} 43... Kg6 {[%clk
0:00:10.8]} 44. Qg4+ {[%clk 0:00:09.1]} 44... Kf6 {[%clk 0:00:10.3]} 45. Qh4+
{[%clk 0:00:08.2]} 45... Kg6 {[%clk 0:00:10.1]} 46. Qg3+ {[%clk 0:00:07.5]}
46... Kf6 {[%clk 0:00:09.3]} 47. Ke4 {[%clk 0:00:07]} 47... Qa4+ {[%clk
0:00:05.6]} 48. Kf3 {[%clk 0:00:07.2]} 48... Qb3+ {[%clk 0:00:05.9]} 49. Kg4
{[%clk 0:00:07]} 49... Qe6+ {[%clk 0:00:05.5]} 50. Kf3 {[%clk 0:00:04.8]} 50...
Qf5+ {[%clk 0:00:03.9]} 51. Kg2 {[%clk 0:00:05.4]} 51... Qg5 {[%clk 0:00:03.6]}
52. Qxg5+ {[%clk 0:00:05]} 52... Kxg5 {[%clk 0:00:04.1]} 53. Kg3 {[%clk
0:00:05.9]} 53... h5 {[%clk 0:00:04.5]} 54. h4+ {[%clk 0:00:05.4]} 1/2-1/2

[Event "Early-Titled-Tuesday-Blitz-March-12-2024"]
[Site "Chess.com"]
[Date "2024.03.12"]
[Round "5"]
[White "Alenzer"]
[Black "Kostukov_Alex"]
[Result "0-1"]
[WhiteElo "2151"]
[BlackElo "2337"]
[TimeControl "180+1"]
[EndTime "8:56:02 PDT"]
[Termination "Kostukov_Alex won by resignation"]

1. e4 {[%clk 0:02:58]} 1... c5 {[%clk 0:02:58.4]} 2. Nf3 {[%clk 0:02:57.7]} 2...
g6 {[%clk 0:02:58]} 3. d4 {[%clk 0:02:57]} 3... cxd4 {[%clk 0:02:52.9]} 4. Nxd4
{[%clk 0:02:57.9]} 4... Bg7 {[%clk 0:02:52.1]} 5. c4 {[%clk 0:02:58]} 5... Nc6
{[%clk 0:02:52.7]} 6. Nc2 {[%clk 0:02:58.1]} 6... Nf6 {[%clk 0:02:52.8]} 7. Nc3
{[%clk 0:02:58.1]} 7... O-O {[%clk 0:02:52.8]} 8. Be2 {[%clk 0:02:53.7]} 8... d6
{[%clk 0:02:52.4]} 9. O-O {[%clk 0:02:52.2]} 9... Bd7 {[%clk 0:02:51.1]} 10. Be3
{[%clk 0:02:48.5]} 10... a6 {[%clk 0:02:45.4]} 11. f3 {[%clk 0:02:37.8]} 11...
Rc8 {[%clk 0:02:44]} 12. Nd5 {[%clk 0:02:32.7]} 12... Nxd5 {[%clk 0:02:35.1]}
13. exd5 {[%clk 0:02:26.8]} 13... Ne5 {[%clk 0:02:31.1]} 14. b3 {[%clk
0:02:22.3]} 14... Be8 {[%clk 0:02:05.7]} 15. Bd4 {[%clk 0:02:11.9]} 15... Nd7
{[%clk 0:01:52]} 16. Bxg7 {[%clk 0:02:11.4]} 16... Kxg7 {[%clk 0:01:52.9]} 17.
Kh1 {[%clk 0:02:03.1]} 17... Nf6 {[%clk 0:01:51.6]} 18. Nd4 {[%clk 0:02:02]}
18... Qa5 {[%clk 0:01:46.1]} 19. Qe1 {[%clk 0:01:47.8]} 19... Qxe1 {[%clk
0:01:44.1]} 20. Rfxe1 {[%clk 0:01:47.9]} 20... Bd7 {[%clk 0:01:45]} 21. Bd3
{[%clk 0:01:45.9]} 21... Rfe8 {[%clk 0:01:45.2]} 22. Re2 {[%clk 0:01:43.4]}
22... e5 {[%clk 0:01:39.6]} 23. dxe6 {[%clk 0:01:40.2]} 23... fxe6 {[%clk
0:01:40.5]} 24. Rae1 {[%clk 0:01:31]} 24... e5 {[%clk 0:01:39.7]} 25. Nc2 {[%clk
0:01:28.8]} 25... b5 {[%clk 0:01:24.9]} 26. cxb5 {[%clk 0:01:26.2]} 26... Bxb5
{[%clk 0:01:23.6]} 27. Bxb5 {[%clk 0:01:10.4]} 27... axb5 {[%clk 0:01:23.2]} 28.
Ne3 {[%clk 0:00:51.1]} 28... Kf7 {[%clk 0:01:15.6]} 29. g4 {[%clk 0:00:49.1]}
29... e4 {[%clk 0:01:10.5]} 30. f4 {[%clk 0:00:46.7]} 30... Rc5 {[%clk
0:01:01.2]} 31. g5 {[%clk 0:00:44]} 31... Nh5 {[%clk 0:00:57.1]} 32. Ng4 {[%clk
0:00:37]} 32... d5 {[%clk 0:00:46.9]} 33. Rf1 {[%clk 0:00:29.8]} 33... Ke6
{[%clk 0:00:43.3]} 34. Ne3 {[%clk 0:00:19.1]} 34... Ng7 {[%clk 0:00:39.5]} 35.
Nc2 {[%clk 0:00:14.9]} 35... Nf5 {[%clk 0:00:33]} 36. Ne3 {[%clk 0:00:10.5]}
36... Nxe3 {[%clk 0:00:30.5]} 37. Rxe3 {[%clk 0:00:11.4]} 37... Kf5 {[%clk
0:00:29.8]} 38. Ree1 {[%clk 0:00:08.7]} 38... d4 {[%clk 0:00:24.9]} 39. Kg2
{[%clk 0:00:08.7]} 39... Rc2+ {[%clk 0:00:24.4]} 40. Rf2 {[%clk 0:00:08.7]}
40... Rec8 {[%clk 0:00:23]} 41. Ree2 {[%clk 0:00:09]} 41... d3 {[%clk
0:00:21.7]} 42. Rd2 {[%clk 0:00:07]} 42... Rxd2 {[%clk 0:00:21.3]} 43. Rxd2
{[%clk 0:00:07.3]} 43... Rc2 {[%clk 0:00:21.5]} 44. Rf2 {[%clk 0:00:05.5]} 44...
Rxf2+ {[%clk 0:00:18.4]} 45. Kxf2 {[%clk 0:00:06.4]} 45... Kxf4 {[%clk 0:00:19]}
46. h4 {[%clk 0:00:06.5]} 46... e3+ {[%clk 0:00:19.9]} 47. Ke1 {[%clk
0:00:06.8]} 47... b4 {[%clk 0:00:20.3]} 48. Kd1 {[%clk 0:00:05.9]} 48... Kf3
{[%clk 0:00:20.5]} 49. Ke1 {[%clk 0:00:06.8]} 49... d2+ {[%clk 0:00:20.5]} 50.
Kd1 {[%clk 0:00:07]} 50... Kf2 {[%clk 0:00:21.4]} 51. a4 {[%clk 0:00:05.9]}
51... e2+ {[%clk 0:00:22.3]} 52. Kxd2 {[%clk 0:00:06.1]} 52... e1=Q+ {[%clk
0:00:22.9]} 53. Kd3 {[%clk 0:00:06.3]} 53... Qc3+ {[%clk 0:00:23.8]} 0-1

[Event "Early-Titled-Tuesday-Blitz-March-12-2024"]
[Site "Chess.com"]
[Date "2024.03.12"]
[Round "5"]
[White "kushagramohan"]
[Black "StankovicIvan"]
[Result "1-0"]
[WhiteElo "2776"]
[BlackElo "2539"]
[TimeControl "180+1"]
[EndTime "8:56:07 PDT"]
[Termination "kushagramohan won on time"]

1. e4 {[%clk 0:03:00.9]} 1... c5 {[%clk 0:02:59.7]} 2. Nf3 {[%clk 0:03:00.7]}
2... Nc6 {[%clk 0:02:59.4]} 3. d4 {[%clk 0:03:01.2]} 3... cxd4 {[%clk
0:03:00.3]} 4. Nxd4 {[%clk 0:03:02.1]} 4... g6 {[%clk 0:03:00.9]} 5. c4 {[%clk
0:03:02]} 5... Bg7 {[%clk 0:03:01.1]} 6. Be3 {[%clk 0:03:01.9]} 6... Qb6 {[%clk
0:03:01.7]} 7. Nb3 {[%clk 0:03:01.3]} 7... Qc7 {[%clk 0:03:01.6]} 8. Qd2 {[%clk
0:03:01.9]} 8... Nf6 {[%clk 0:03:01.8]} 9. Nc3 {[%clk 0:03:02.5]} 9... O-O
{[%clk 0:03:01]} 10. f3 {[%clk 0:02:59.3]} 10... d6 {[%clk 0:03:01.2]} 11. h4
{[%clk 0:02:56.8]} 11... a5 {[%clk 0:02:59.2]} 12. Na4 {[%clk 0:02:56.7]} 12...
Nd7 {[%clk 0:02:52.4]} 13. h5 {[%clk 0:02:56.3]} 13... b6 {[%clk 0:02:49.8]} 14.
Bh6 {[%clk 0:02:48.9]} 14... Nf6 {[%clk 0:02:29.9]} 15. g4 {[%clk 0:02:42]}
15... Ne5 {[%clk 0:02:25.2]} 16. Be2 {[%clk 0:02:39]} 16... Nxc4 {[%clk
0:02:10.8]} 17. Qc1 {[%clk 0:02:39.3]} 17... Ba6 {[%clk 0:02:02.5]} 18. hxg6
{[%clk 0:02:29.3]} 18... fxg6 {[%clk 0:02:02]} 19. Bxg7 {[%clk 0:02:29.2]} 19...
Kxg7 {[%clk 0:02:02.9]} 20. Qh6+ {[%clk 0:02:29.6]} 20... Kg8 {[%clk 0:02:03.3]}
21. g5 {[%clk 0:02:29]} 21... Nh5 {[%clk 0:01:58.4]} 22. Rxh5 {[%clk 0:02:29.4]}
22... gxh5 {[%clk 0:01:58.4]} 23. g6 {[%clk 0:02:29.1]} 23... e5 {[%clk
0:01:47.8]} 24. Kf2 {[%clk 0:02:20.3]} 24... Qg7 {[%clk 0:01:38.4]} 25. gxh7+
{[%clk 0:02:20.2]} 25... Kh8 {[%clk 0:01:38.8]} 26. Qe6 {[%clk 0:02:18]} 26...
b5 {[%clk 0:01:15.8]} 27. Nc3 {[%clk 0:02:15.6]} 27... Qa7+ {[%clk 0:01:14.9]}
28. Kg2 {[%clk 0:02:06.7]} 28... Ne3+ {[%clk 0:01:06.6]} 29. Kh1 {[%clk
0:02:00.7]} 29... b4 {[%clk 0:01:01.3]} 30. Rg1 {[%clk 0:01:40.7]} 30... bxc3
{[%clk 0:00:52.9]} 31. Bxa6 {[%clk 0:01:40.7]} 31... cxb2 {[%clk 0:00:34.5]} 32.
Bd3 {[%clk 0:01:23.5]} 32... Ng4 {[%clk 0:00:33.8]} 33. fxg4 {[%clk 0:01:15.1]}
33... Qe3 {[%clk 0:00:31.2]} 34. gxh5 {[%clk 0:01:13.5]} 34... Qf3+ {[%clk
0:00:22.4]} 35. Kh2 {[%clk 0:01:07.6]} 35... Qf2+ {[%clk 0:00:15.5]} 36. Rg2
{[%clk 0:00:55.6]} 36... Qf4+ {[%clk 0:00:15.3]} 37. Kh1 {[%clk 0:00:42.1]}
37... Qh4+ {[%clk 0:00:11.8]} 38. Kg1 {[%clk 0:00:42.8]} 38... Qe1+ {[%clk
0:00:11.6]} 39. Kh2 {[%clk 0:00:43.2]} 39... Qh4+ {[%clk 0:00:11.7]} 40. Kg1
{[%clk 0:00:40.2]} 40... Qe1+ {[%clk 0:00:09]} 41. Kh2 {[%clk 0:00:40.4]} 41...
Qh4+ {[%clk 0:00:09.1]} 42. Qh3 {[%clk 0:00:41.3]} 42... Qxh3+ {[%clk
0:00:05.7]} 43. Kxh3 {[%clk 0:00:42.2]} 43... Rf3+ {[%clk 0:00:06.1]} 44. Rg3
{[%clk 0:00:42.7]} 44... Rxg3+ {[%clk 0:00:06.3]} 45. Kxg3 {[%clk 0:00:43.6]}
45... a4 {[%clk 0:00:06.4]} 46. Nd2 {[%clk 0:00:43.2]} 46... a3 {[%clk
0:00:04.9]} 47. Kf3 {[%clk 0:00:42.8]} 47... Rc8 {[%clk 0:00:05.5]} 48. Ke3
{[%clk 0:00:40.7]} 48... Rc1 {[%clk 0:00:05.9]} 49. Bb1 {[%clk 0:00:35.3]} 49...
Kxh7 {[%clk 0:00:05.6]} 50. Kd3 {[%clk 0:00:34.7]} 50... Kh6 {[%clk 0:00:06.1]}
51. Bc2 {[%clk 0:00:32.4]} 51... Kxh5 {[%clk 0:00:04.7]} 52. Nb1 {[%clk
0:00:32.3]} 52... Rg1 {[%clk 0:00:04.2]} 53. Kc3 {[%clk 0:00:28]} 53... Rg3+
{[%clk 0:00:02.7]} 54. Kb4 {[%clk 0:00:28.4]} 54... Rg2 {[%clk 0:00:03.2]} 55.
Kb3 {[%clk 0:00:26.6]} 55... Kg5 {[%clk 0:00:02.6]} 56. Nxa3 {[%clk 0:00:25.1]}
56... Kf4 {[%clk 0:00:01.4]} 57. Kxb2 {[%clk 0:00:25.4]} 1-0